bitfinex/quotes_ETHUSD_20240721
["timestamp","ask_amount","ask_price","bid_price","bid_amount"]
[1721578624032,0.06400197,3511.5,3511.0,5.80837]
[1721578624431,0.06400197,3511.5,3511.0,2.9602]
[1721578625464,0.06409142,3511.4,3511.0,2.9602]
[1721578625681,2.8477,3511.6,3511.0,2.9602]
[1721578625884,0.06409115,3511.3,3511.0,2.9602]
[1721578626088,2.8477,3511.6,3511.0,2.9602]
[1721578626293,0.06409089,3511.2,3511.0,2.9602]
[1721578626456,2.84779,3511.5,3511.0,2.9602]
[1721578626779,0.06409142,3511.4,3511.0,2.9602]
[1721578626984,0.06409142,3511.4,3511.1,2.84809]
[1721578627152,3.73945968,3511.9,3511.2,0.55]
[1721578627351,0.06408834,3511.3,3511.2,0.55]
[1721578627571,2.84755,3511.8,3511.2,3.39801]
[1721578627771,0.06408834,3511.3,3511.2,3.39801]
[1721578627975,2.84755,3511.8,3511.2,3.39801]
[1721578628141,0.06408834,3511.3,3511.2,3.39801]
[1721578628491,0.06410802,3511.3,3511.2,3.39801]
[1721578628788,2.84739,3512.0,3511.3,2.4102]
[1721578629140,2.84746,3511.9,3511.3,2.4102]
[1721578630551,2.84734,3512.1,3511.3,5.25814]
[1721578630756,2.84739,3512.0,3511.3,5.25814]
[1721578630960,2.84739,3512.0,3511.4,0.55]
[1721578631453,0.89195968,3512.2,3511.6,2.84764]
[1721578631648,3.73910968,3512.3,3511.8,2.4102]
[1721578632845,2.84715,3512.3,3511.8,2.4102]
[1721578633384,3.73910968,3512.3,3511.8,2.4102]
[1721578634294,0.89195968,3512.2,3511.8,2.4102]
[1721578635493,0.89195968,3512.2,3511.8,5.25773]
[1721578636143,0.89195968,3512.2,3511.8,2.4102]
[1721578636773,0.89195968,3512.3,3511.8,2.4102]
[1721578636981,0.89195968,3512.4,3511.9,3.69342]
[1721578637189,0.06421693,3512.2,3511.9,3.69342]
[1721578637396,0.06421831,3512.3,3511.9,3.69342]
[1721578637695,0.89195968,3512.4,3512.0,0.39311201]
[1721578637845,0.06421913,3512.2,3512.0,0.39311201]
[1721578638048,0.89195968,3512.4,3512.1,0.55]
[1721578638284,1.18927957,3512.6,3512.2,5.18976]
[1721578638285,0.06429548,3512.3,3512.2,5.18976]
[1721578638649,0.89195968,3512.7,3512.2,5.18976]
[1721578638978,0.0643213,3512.6,3512.2,5.18976]
[1721578639493,0.0643213,3512.6,3512.2,5.48578]
[1721578640701,0.0643213,3512.6,3512.4,2.84702]
[1721578640869,0.89195968,3512.8,3512.3,2.84713]
[1721578641076,1.28927957,3513.0,3512.6,2.84682]
[1721578641077,0.06436335,3512.7,3512.6,2.84682]
[1721578641271,0.06436335,3512.7,3512.5,2.84697]
[1721578641272,0.1,3513.0,3512.7,5.17236]
[1721578641475,0.06437949,3512.9,3512.8,3.39672]
[1721578641803,0.06437949,3512.9,3512.8,0.55]
[1721578642862,2.84682,3512.7,3511.9,9.5756]
[1721578643062,2.84703,3512.5,3511.9,9.5756]
[1721578643291,2.91155056,3512.4,3511.9,9.5756]
[1721578643458,0.06449056,3512.4,3511.9,9.5756]
[1721578643658,2.84714,3512.3,3511.9,9.5756]
[1721578643895,0.06449002,3512.2,3511.9,9.5756]
[1721578644261,0.89195968,3512.4,3511.9,9.5756]
[1721578644563,0.06454509,3512.3,3512.0,0.55]
[1721578645186,2.84752,3511.9,3511.6,19.73]
[1721578645520,0.0645436,3511.8,3511.3,2.3256]
[1721578645812,2.84738,3512.0,3511.3,5.17353]
[1721578646161,0.06437794,3511.9,3511.3,5.17353]
[1721578646596,0.06437794,3511.9,3511.3,2.3256]
[1721578646975,0.89195968,3512.3,3511.8,2.3256]
[1721578647181,0.06432689,3512.2,3511.8,2.3256]
[1721578647388,3.73906968,3512.4,3511.9,0.55]
[1721578647570,0.06432716,3512.3,3511.9,0.55]
[1721578650569,3.80342684,3512.3,3511.9,0.55]
[1721578650880,2.91146716,3512.3,3511.9,0.55]
[1721578651263,0.06432716,3512.3,3511.9,0.55]
[1721578651467,0.06432716,3512.3,3511.9,3.39745]
[1721578651668,0.89195968,3512.5,3511.9,3.39745]
[1721578652193,0.06267809,3512.4,3511.9,3.39745]
[1721578653818,2.90972809,3512.4,3511.9,0.55]
[1721578656204,2.84714,3512.3,3511.9,0.55]
[1721578656407,0.06267756,3512.2,3511.9,0.55]
[1721578656718,2.84714,3512.3,3511.9,0.55]
[1721578657016,0.89195968,3512.5,3511.9,0.55]
[1721578657372,0.06265419,3512.4,3511.9,0.55]
[1721578657611,2.90976419,3512.4,3511.9,0.55]
[1721578658730,0.06265419,3512.4,3511.9,3.39745]
[1721578658906,0.06265419,3512.4,3512.2,2.4833]
[1721578659221,3.73868968,3512.8,3512.2,5.33051]
[1721578659371,1.18927957,3512.9,3512.2,5.33051]
[1721578659372,0.89195968,3512.9,3512.2,5.33051]
[1721578659582,0.06265949,3512.8,3512.2,5.33051]
[1721578659877,2.84695,3512.6,3512.2,2.4833]
[1721578660103,0.06268539,3512.5,3512.2,2.4833]
[1721578662673,2.84706,3512.4,3512.2,2.4833]
[1721578662874,0.0626975,3512.3,3512.2,2.4833]
[1721578663103,2.84706,3512.4,3512.2,0.55]
[1721578663286,2.9098375,3512.3,3511.9,2.4433]
[1721578664923,0.0626975,3512.3,3511.9,2.4433]
[1721578665211,2.84706,3512.4,3511.9,2.4433]
[1721578665512,0.06266235,3512.3,3511.9,2.4433]
[1721578666393,2.84706,3512.4,3511.9,2.4433]
[1721578666582,0.06266235,3512.3,3511.9,2.4433]
[1721578667081,2.90980235,3512.3,3511.9,2.4433]
[1721578667997,0.06266235,3512.3,3511.9,2.4433]
[1721578668318,3.73898968,3512.5,3511.9,2.4433]
[1721578668519,0.0626663,3512.2,3511.9,2.4433]
[1721578668720,3.73898968,3512.5,3511.9,2.4433]
[1721578669104,0.06266683,3512.4,3511.9,2.4433]
[1721578669282,2.90971683,3512.4,3511.9,2.4433]
[1721578669482,3.80167651,3512.4,3511.9,2.4433]
[1721578671492,0.89195968,3512.3,3511.9,2.4433]
[1721578671679,0.95462625,3512.3,3511.9,2.4433]
[1721578672703,0.06266657,3512.3,3511.9,2.4433]
[1721578672934,0.95462625,3512.3,3511.9,2.4433]
[1721578674493,0.89195968,3512.2,3511.9,2.4433]
[1721578674690,0.0626663,3512.2,3511.9,2.4433]
[1721578674996,0.89195968,3512.3,3511.9,2.4433]
[1721578675216,0.06267306,3512.1,3511.9,5.29075]
[1721578675421,0.89195968,3512.4,3512.0,0.55]
[1721578675638,0.06268176,3512.2,3512.0,0.55]
[1721578675930,0.89195968,3512.3,3512.0,0.55]
[1721578677088,0.89195968,3512.4,3512.0,3.39737]
[1721578677521,0.89195968,3512.3,3512.0,3.39737]
[1721578677721,0.89195968,3512.4,3512.0,3.39737]
[1721578677936,0.89195968,3512.5,3512.0,3.39737]
[1721578678093,0.89195968,3512.5,3512.1,5.34669]
[1721578678401,0.89195968,3512.5,3512.2,0.55]
[1721578679094,0.89195968,3512.4,3512.2,0.55]
[1721578680534,1.18927957,3512.6,3512.2,0.55]
[1721578680535,0.89195968,3512.5,3512.2,0.55]
[1721578681938,0.89195968,3512.7,3512.4,2.265]
[1721578682107,0.89195968,3512.7,3512.5,3.36464234]
[1721578682307,0.89195968,3512.8,3512.5,3.36464234]
[1721578683149,0.89195968,3512.7,3512.5,0.51769234]
[1721578683305,0.89195968,3512.8,3512.5,0.51769234]
[1721578683699,0.89195968,3512.8,3512.5,3.36465234]
[1721578683997,0.89195968,3512.8,3512.5,0.51769234]
[1721578684190,0.89195968,3512.8,3511.6,2.265]
[1721578684437,0.89195968,3512.6,3512.1,2.265]
[1721578684735,0.89195968,3512.5,3512.1,2.265]
[1721578684893,0.89195968,3512.6,3512.1,2.265]
[1721578685092,0.89195968,3512.5,3512.1,2.265]
[1721578685345,0.89195968,3512.7,3512.2,2.8472]
[1721578685842,0.89195968,3512.6,3512.1,5.11229]
[1721578685999,0.89195968,3512.7,3512.2,0.55]
[1721578686893,0.89195968,3512.7,3512.2,3.39721]
[1721578687101,0.89195968,3512.7,3512.2,0.55]
[1721578687318,0.89195968,3512.6,3512.2,0.55]
[1721578687993,0.89195968,3512.5,3512.2,0.55]
[1721578688336,0.89195968,3512.6,3512.2,0.55]
[1721578688700,0.89195968,3512.6,3512.2,3.39717]
[1721578690134,4.03601957,3512.8,3512.2,3.39717]
[1721578690135,0.89195968,3512.8,3512.6,2.84689]
[1721578690342,0.89195968,3512.9,3512.7,0.55]
[1721578690848,0.89195968,3512.9,3512.6,0.55]
[1721578691697,0.89195968,3512.9,3512.6,3.39688]
[1721578692104,0.99195968,3513.0,3512.7,5.1118]
[1721578692348,0.99195968,3513.0,3512.8,0.55]
[1721578693003,0.1,3513.0,3512.9,2.84665]
[1721578693214,0.1,3513.0,3512.9,5.66165]
[1721578694517,0.1,3513.0,3512.9,8.5083]
[1721578696706,0.1,3513.0,3512.9,5.66165]
[1721578697106,0.1,3513.0,3512.9,2.265]
[1721578697429,0.16299195,3513.0,3512.3,2.4968]
[1721578697620,3.00956195,3513.0,3512.3,5.34387]
[1721578697948,3.00956195,3513.0,3512.3,2.4968]
[1721578697949,2.90970222,3512.9,3512.3,2.4968]
[1721578698162,2.90970222,3512.9,3512.3,5.34387]
[1721578698163,0.06304222,3512.9,3512.3,5.34387]
[1721578698312,0.06304222,3512.9,3512.3,5.34393]
[1721578698833,0.9550019,3512.9,3512.3,5.34393]
[1721578699165,0.9550019,3512.9,3512.4,0.55]
[1721578699859,1.74873005,3512.9,3512.1,7.25]
[1721578700156,0.89195968,3512.7,3512.1,7.25]
[1721578700317,0.06286782,3512.6,3512.1,7.25]
[1721578700517,0.89195968,3512.7,3512.1,10.09728]
[1721578700743,0.06286768,3512.6,3512.1,10.09728]
[1721578700949,0.89195968,3512.7,3512.1,10.09728]
[1721578701149,0.06286782,3512.6,3512.1,10.09728]
[1721578701368,0.89195968,3512.7,3512.1,10.09728]
[1721578701857,0.06286782,3512.6,3512.1,10.09728]
[1721578702059,0.06286782,3512.6,3512.2,0.55]
[1721578702242,0.89195968,3512.7,3512.2,0.55]
[1721578702621,0.06286782,3512.6,3512.2,0.55]
[1721578702962,0.89195968,3512.7,3512.2,0.55]
[1721578703268,0.06286782,3512.6,3512.2,0.55]
[1721578703416,0.9548275,3512.6,3512.2,0.55]
[1721578703760,0.89195968,3512.6,3512.2,0.55]
[1721578703955,3.73877968,3512.7,3512.2,0.55]
[1721578704132,0.06286782,3512.6,3512.2,0.55]
[1721578704321,3.73877968,3512.7,3512.2,0.55]
[1721578704521,0.06286782,3512.6,3512.2,0.55]
[1721578704723,3.73877968,3512.7,3512.2,0.55]
[1721578705059,0.06286782,3512.6,3512.2,0.55]
[1721578705351,3.73877968,3512.7,3512.2,0.55]
[1721578705560,0.9548275,3512.6,3512.2,0.55]
[1721578705721,0.89195968,3512.6,3512.2,0.55]
[1721578706324,3.73887968,3512.6,3512.1,0.55]
[1721578706520,0.95482723,3512.5,3512.1,0.55]
[1721578706934,0.95482723,3512.5,3511.7,41.6604]
[1721578706935,0.89195968,3512.3,3511.7,41.6604]
[1721578707230,2.84743,3512.0,3511.7,41.6604]
[1721578707430,2.84743,3512.0,3511.7,2.4968]
[1721578707630,0.06277587,3511.9,3511.3,2.4968]
[1721578708127,0.06277587,3511.9,3511.3,5.34473]
[1721578708442,2.84743,3512.0,3511.3,5.34473]
[1721578708657,0.89195968,3512.1,3511.5,2.84778]
[1721578708867,0.062776,3511.9,3511.6,0.55]
[1721578709154,0.06270126,3511.8,3511.6,0.55]
[1721578709362,3.73918968,3512.2,3511.6,0.55]
[1721578709668,0.06270206,3512.1,3511.6,0.55]
[1721578710242,2.91000206,3512.1,3511.6,0.55]
[1721578710468,2.8474,3512.0,3511.4,0.55]
[1721578710960,0.06270627,3511.9,3511.4,0.55]
[1721578711333,0.06270627,3511.9,3511.4,3.39786]
[1721578711530,0.89195968,3512.1,3511.4,3.39786]
[1721578711748,0.06270654,3512.0,3511.4,3.39786]
[1721578713448,0.06270654,3512.0,3511.6,2.84769]
[1721578713658,0.06270654,3512.0,3511.8,2.4968]
[1721578714035,0.89195968,3512.3,3511.9,0.55]
[1721578714265,0.89195968,3512.5,3512.0,2.84737]
[1721578714474,0.89195968,3512.5,3512.1,0.55]
[1721578715035,0.89195968,3512.6,3512.1,0.55]
[1721578715251,4.03604957,3512.8,3512.2,2.84721]
[1721578715252,0.89195968,3512.7,3512.2,2.84721]
[1721578715961,0.89195968,3512.7,3512.3,2.8471]
[1721578716179,0.89195968,3512.8,3512.4,2.84704]
[1721578716378,1.18927957,3512.9,3512.3,2.3465]
[1721578716379,0.89195968,3512.9,3512.5,2.84696]
[1721578716587,3.83852968,3513.0,3512.3,5.19358]
[1721578716756,3.83852968,3513.0,3512.4,0.55]
[1721578717140,3.73862968,3512.9,3512.4,0.55]
[1721578717765,2.84683,3512.7,3512.4,0.55]
[1721578718074,3.73878968,3512.7,3512.4,0.55]
[1721578718946,2.84698,3512.5,3511.9,7.25]
[1721578719663,0.89195968,3512.6,3511.9,10.09745]
[1721578719840,0.89195968,3512.6,3512.0,2.84736]
[1721578720183,3.73881968,3512.7,3512.0,2.84736]
[1721578720565,2.8469,3512.6,3511.9,7.25]
[1721578720884,0.89195968,3512.6,3512.0,0.55]
[1721578721187,0.89195968,3512.7,3512.2,2.84721]
[1721578721360,0.89195968,3512.8,3512.3,0.55]
[1721578721680,3.73868968,3512.8,3512.3,0.55]
[1721578722086,2.84682,3512.7,3512.3,0.55]
[1721578722319,3.73877968,3512.7,3512.2,0.55]
[1721578722519,2.8469,3512.6,3512.1,2.3465]
[1721578722721,2.84706,3512.4,3511.9,7.25]
[1721578723004,2.84706,3512.4,3512.0,0.55]
[1721578724311,2.84723,3512.2,3512.0,0.55]
[1721578724607,2.84723,3512.2,3511.9,7.25]
[1721578724608,2.84738,3512.0,3511.9,7.25]
[1721578724771,2.84738,3512.0,3511.7,2.3465]
[1721578725172,3.73919968,3512.2,3511.7,2.3465]
[1721578725409,2.8473,3512.1,3511.7,2.3465]
[1721578726124,0.89195968,3512.2,3511.7,2.3465]
[1721578726609,3.73914968,3512.3,3511.7,2.3465]
[1721578726789,2.84721,3512.2,3511.7,2.3465]
[1721578726989,0.06264671,3512.1,3511.7,2.3465]
[1721578728475,2.84739,3512.0,3511.7,2.3465]
[1721578728803,0.06263239,3511.9,3511.7,2.3465]
[1721578729401,2.91010239,3511.9,3511.7,2.3465]
[1721578729600,2.91010239,3511.9,3511.4,2.3465]
[1721578729805,2.91010239,3511.9,3511.5,0.55]
[1721578730546,2.84754,3511.8,3511.5,0.55]
[1721578731118,0.06263687,3511.7,3511.5,0.55]
[1721578731556,2.84745,3512.0,3511.5,0.55]
[1721578731862,0.0626374,3511.9,3511.5,0.55]
[1721578732152,2.9101174,3511.9,3511.5,0.55]
[1721578733817,2.84756,3511.8,3511.5,0.55]
[1721578735250,3.50624197,3511.8,3511.4,2.3465]
[1721578735648,0.06257642,3511.7,3511.4,2.3465]
[1721578735813,2.8477,3511.6,3511.4,2.3465]
[1721578736262,0.06255762,3511.5,3511.4,2.3465]
[1721578736417,2.8477,3511.6,3511.4,2.8965]
[1721578738026,2.84756,3511.8,3511.4,2.8965]
[1721578738378,0.06248339,3511.7,3511.4,2.8965]
[1721578738561,2.84756,3511.8,3511.4,2.8965]
[1721578738725,0.06248339,3511.7,3511.4,2.8965]
[1721578739059,2.8474,3512.0,3511.4,2.8965]
[1721578739427,0.06248392,3511.9,3511.4,2.8965]
[1721578739637,0.06248392,3511.9,3511.7,2.84761]
[1721578739938,3.73909968,3512.3,3511.8,2.9117]
[1721578740160,0.06245521,3512.2,3511.9,0.55]
[1721578740350,2.84714,3512.3,3511.9,0.55]
[1721578740540,0.06245521,3512.2,3511.9,0.55]
[1721578740744,2.84714,3512.3,3511.9,0.55]
[1721578740927,0.06245521,3512.2,3511.9,0.55]
[1721578741267,0.89195968,3512.3,3511.9,0.55]
[1721578741474,2.90974494,3512.1,3511.9,0.55]
[1721578741667,4.38036762,3512.3,3511.9,0.55]
[1721578742131,0.06245496,3512.2,3511.9,0.55]
[1721578742326,3.73917968,3512.2,3511.9,0.55]
[1721578742645,0.06245469,3512.1,3511.9,0.55]
[1721578742964,3.73910968,3512.3,3511.9,0.55]
[1721578743131,0.06249993,3512.2,3511.9,0.55]
[1721578743330,0.89195968,3512.2,3511.9,0.55]
[1721578743559,0.06249966,3512.1,3511.9,0.55]
[1721578744868,0.06249966,3512.1,3511.8,2.3617]
[1721578745039,0.06249966,3512.1,3511.4,7.25]
[1721578745040,2.84762,3511.7,3511.5,2.3869]
[1721578745971,2.84762,3511.7,3511.4,7.25]
[1721578746174,2.84771,3511.6,3511.4,7.25]
[1721578746398,2.91032835,3511.5,3511.4,7.25]
[1721578746599,2.84778,3511.5,3511.4,7.25]
[1721578746742,2.91032365,3511.5,3511.4,7.25]
[1721578747165,3.80228333,3511.5,3511.4,7.25]
[1721578747483,3.80228333,3511.5,3510.1,0.59907292]
[1721578747484,2.8483,3510.9,3510.2,2.3869]
[1721578747687,0.06254365,3511.5,3510.2,2.3869]
[1721578747688,0.89143309,3511.0,3510.2,2.3869]
[1721578747843,0.95386279,3510.8,3510.2,2.3869]
[1721578748197,0.06234862,3510.7,3510.2,5.23573]
[1721578748343,0.89143309,3510.9,3510.2,5.23573]
[1721578748546,0.06234973,3510.8,3510.2,2.3869]
[1721578749145,3.73957309,3511.1,3510.2,2.3869]
[1721578749363,0.06231363,3511.0,3510.2,2.3869]
[1721578749667,0.95374672,3511.0,3510.3,0.55]
[1721578749849,0.06231363,3511.0,3510.3,0.55]
[1721578750281,0.06231363,3511.0,3510.4,2.84865]
[1721578750482,0.95374672,3511.0,3510.5,0.55]
[1721578750840,3.80194672,3511.0,3510.3,0.55]
[1721578751268,2.84827,3510.9,3510.3,0.55]
[1721578751671,0.06230556,3510.8,3510.3,0.55]
[1721578751980,2.84851,3510.6,3510.3,0.55]
[1721578752396,2.91092476,3510.5,3509.8,2.3869]
[1721578752693,2.84873,3510.4,3509.8,2.3869]
[1721578753035,0.06215799,3510.3,3509.8,2.3869]
[1721578753241,2.91092799,3510.3,3509.8,2.3869]
[1721578753452,2.91092799,3510.3,3509.4,2.3869]
[1721578753453,0.06215799,3510.3,3509.4,2.3869]
[1721578753656,2.84892,3510.1,3509.4,2.3869]
[1721578754110,2.84917,3509.8,3509.4,2.3869]
[1721578754255,2.84931,3509.7,3508.8,2.3869]
[1721578754454,2.91135682,3509.7,3508.9,2.84987]
[1721578754775,2.84933,3509.6,3508.9,2.84987]
[1721578754973,2.91141171,3509.5,3508.8,2.3869]
[1721578755157,2.84967,3509.2,3508.8,2.3869]
[1721578755494,0.0619428,3509.1,3508.8,2.3869]
[1721578756952,2.9116828,3509.1,3508.2,2.4834]
[1721578757160,2.84991,3508.9,3508.2,2.4834]
[1721578757355,0.06170709,3508.8,3508.2,2.4834]
[1721578757596,2.91169709,3508.8,3508.2,2.4834]
[1721578758979,0.06170709,3508.8,3508.2,2.4834]
[1721578759303,0.06170709,3508.8,3508.2,5.33383]
[1721578759655,2.84965,3509.2,3508.2,5.33383]
[1721578759866,2.84965,3509.2,3508.3,2.85036]
[1721578759867,0.06170714,3508.7,3508.3,2.85036]
[1721578760097,2.84981,3509.0,3508.3,2.85036]
[1721578760303,0.06170696,3508.6,3508.3,2.85036]
[1721578760594,0.06170669,3508.5,3508.3,2.85036]
[1721578760765,2.84981,3509.0,3508.3,2.85036]
[1721578760972,0.06170785,3508.9,3508.3,2.85036]
[1721578761703,0.06170785,3508.9,3508.2,2.4834]
[1721578761872,0.06170785,3508.9,3508.3,0.55]
[1721578763099,0.06170785,3508.9,3508.3,3.40031]
[1721578763303,0.06170785,3508.9,3508.4,2.85029]
[1721578763480,2.84974,3509.1,3508.4,2.85029]
[1721578763678,2.85014,3508.6,3508.2,2.4834]
[1721578763877,2.8499,3508.9,3507.9,7.7430092]
[1721578764111,0.5984275,3509.1,3508.0,0.55]
[1721578764112,2.85003,3508.8,3508.0,0.55]
[1721578764269,2.85003,3508.8,3508.1,2.85048]
[1721578764270,0.06163219,3508.8,3508.1,2.85048]
[1721578764777,0.06156071,3508.7,3508.1,2.85048]
[1721578764976,0.06156071,3508.7,3508.0,0.55]
[1721578764977,3.14126507,3508.7,3508.0,0.55]
[1721578765373,3.14126507,3508.7,3508.0,3.40061]
[1721578765898,2.85014,3508.6,3508.0,3.40062]
[1721578766616,2.85022,3508.5,3508.0,0.55]
[1721578767205,0.29115507,3508.7,3508.0,0.55]
[1721578767206,2.85031,3508.4,3508.0,0.55]
[1721578767420,2.85031,3508.4,3507.9,7.7430092]
[1721578767768,2.85014,3508.6,3507.9,7.7430092]
[1721578767974,2.91174664,3508.5,3507.9,7.7430092]
[1721578768596,0.06151664,3508.5,3507.9,10.5936892]
[1721578768803,2.84989,3508.9,3508.1,2.85054]
[1721578768977,2.85001,3508.8,3508.2,0.55]
[1721578769172,0.06145801,3508.7,3508.1,0.55]
[1721578769399,0.06145801,3508.7,3507.9,7.7430092]
[1721578769400,2.85013,3508.7,3507.9,7.7430092]
[1721578769601,2.85025,3508.5,3507.9,7.7430092]
[1721578770175,2.85044,3508.3,3507.9,7.7430092]
[1721578770390,2.8506,3508.1,3507.9,7.7430092]
[1721578771203,2.85062,3508.0,3507.9,7.7430092]
[1721578771375,2.85062,3508.0,3507.9,0.4930092]
[1721578771376,5.76268258,3508.0,3507.9,0.4930092]
[1721578771578,6.33895084,3508.0,3507.9,0.4930092]
[1721578772292,2.85127,3507.2,3506.6,19.4336]
[1721578772522,2.85127,3507.2,3506.5,24.91393]
[1721578773223,2.85127,3507.2,3506.5,22.0621]
[1721578773728,2.85137,3507.1,3506.5,22.0621]
[1721578773931,2.85125,3507.3,3506.5,24.91394]
[1721578774151,2.85148,3507.0,3506.5,19.73]
[1721578774462,2.8519,3506.5,3505.8,2.3321]
[1721578774806,2.8517,3506.7,3505.8,2.3321]
[1721578774807,0.0611205,3506.4,3505.9,2.85231]
[1721578775009,2.85169,3506.7,3505.8,5.18443]
[1721578775238,2.8516,3506.8,3505.8,5.18443]
[1721578775751,0.06107197,3506.7,3505.8,5.18443]
[1721578775955,2.91277197,3506.7,3506.0,2.85223]
[1721578776240,2.85176,3506.6,3505.9,0.55]
[1721578776753,2.8516,3506.8,3505.9,0.55]
[1721578776754,2.91286363,3506.5,3505.9,0.55]
[1721578777041,0.06101363,3506.5,3505.9,0.55]
[1721578777548,2.8516,3506.8,3505.9,3.40231]
[1721578777761,0.06101336,3506.4,3506.0,2.85223]
[1721578777905,0.29754565,3507.2,3506.7,2.85166]
[1721578778105,0.29754565,3507.2,3506.6,2.4708]
[1721578778350,0.06102014,3507.1,3506.6,2.4708]
[1721578778506,2.85146,3507.0,3506.7,0.55]
[1721578778962,0.06101377,3506.9,3506.7,0.55]
[1721578779126,0.06101377,3506.9,3506.6,2.4708]
[1721578779975,0.06101377,3506.9,3506.3,2.85197]
[1721578780119,0.06101377,3506.9,3506.4,3.40192]
[1721578780320,2.8512,3507.3,3506.4,3.40192]
[1721578780557,2.85113,3507.4,3506.7,2.85167]
[1721578780736,0.06102895,3507.2,3506.7,2.85167]
[1721578781236,0.06104279,3507.1,3506.7,2.85167]
[1721578781444,3.0,3507.5,3506.6,2.85175]
[1721578781657,0.06104126,3507.0,3506.9,2.85146]
[1721578781837,3.0,3507.5,3506.9,2.85146]
[1721578782050,0.06104901,3507.4,3506.9,2.85146]
[1721578782372,0.06104901,3507.4,3507.0,2.4708]
[1721578782728,3.14831967,3507.8,3507.1,2.85129]
[1721578783266,0.0611114,3507.7,3507.1,2.85129]
[1721578783632,2.9119814,3507.7,3507.0,2.4708]
[1721578783838,2.85101,3507.6,3507.0,2.4708]
[1721578784075,0.06118077,3507.5,3507.0,2.4708]
[1721578785385,0.06118077,3507.5,3507.4,2.85111]
[1721578785568,2.85055,3508.1,3507.4,3.40111]
[1721578785769,0.06119346,3507.5,3507.4,3.40111]
[1721578785957,2.85055,3508.1,3507.4,3.40111]
[1721578786156,2.85042,3508.3,3507.4,3.40111]
[1721578786493,2.85042,3508.3,3507.6,2.85093]
[1721578786640,0.06119352,3508.2,3507.6,2.85093]
[1721578787040,2.91166352,3508.2,3507.6,2.85093]
[1721578787291,2.91166352,3508.2,3507.4,3.40111]
[1721578787292,2.85054,3508.1,3507.4,3.40111]
[1721578787791,2.91183298,3508.0,3507.0,12.57219]
[1721578788009,2.85092,3507.7,3507.1,0.55]
[1721578788274,2.85092,3507.7,3507.0,9.7208]
[1721578788275,2.85128,3507.2,3507.0,7.25]
[1721578788478,2.85128,3507.2,3506.6,19.73]
[1721578788843,0.0612307,3507.1,3506.6,19.73]
[1721578789044,2.85136,3507.1,3506.6,19.73]
[1721578789880,0.5762823,3507.7,3506.2,7.25]
[1721578789881,2.85108,3507.5,3506.2,7.25]
[1721578790245,5.70333,3506.8,3506.2,7.25]
[1721578790476,0.06101697,3506.7,3506.2,7.25]
[1721578790657,2.85183,3506.6,3505.7,5.32328]
[1721578790853,2.85183,3506.6,3505.8,2.85234]
[1721578791081,2.3768,3507.1,3505.9,2.85232]
[1721578791082,2.85148,3507.0,3505.9,2.85232]
[1721578791309,2.85159,3506.9,3506.1,2.85214]
[1721578791520,2.9125677,3506.9,3506.1,2.85214]
[1721578791668,0.0609777,3506.9,3506.0,2.85221]
[1721578791873,0.0609777,3506.9,3506.3,2.85199]
[1721578792181,2.67262673,3507.5,3506.6,2.85175]
[1721578792412,2.85121,3507.3,3506.6,2.85175]
[1721578792728,2.91222272,3507.2,3506.6,2.85175]
[1721578793010,0.06093272,3507.2,3506.5,2.8518]
[1721578793218,2.91222272,3507.2,3506.5,2.8518]
[1721578794274,2.91222272,3507.2,3506.6,2.85175]
[1721578795003,2.91222272,3507.2,3506.3,5.3228]
[1721578795208,0.06093272,3507.2,3506.6,2.85175]
[1721578795368,2.85096,3507.6,3506.9,2.85151]
[1721578795565,2.4911,3507.8,3506.9,2.85151]
[1721578795566,3.0609976,3507.5,3506.9,2.85144]
[1721578795768,0.0609976,3507.5,3506.9,2.85144]
[1721578796021,3.0,3507.7,3506.9,2.85144]
[1721578796168,0.54911,3507.7,3506.8,2.85159]
[1721578796368,0.06102057,3507.6,3506.8,2.85159]
[1721578796973,2.85104,3507.5,3506.8,2.85159]
[1721578797176,0.06104682,3507.4,3506.8,2.85159]
[1721578797374,2.85131,3507.2,3506.4,3.40187]
[1721578797677,0.06104601,3507.1,3506.5,2.85183]
[1721578798385,2.85116,3507.4,3506.7,2.85161]
[1721578798572,0.0610556,3507.0,3506.7,2.85161]
[1721578798774,2.85122,3507.3,3506.7,2.85161]
[1721578798968,0.06105614,3507.2,3506.9,2.85151]
[1721578799189,2.85096,3507.6,3506.9,2.85151]
[1721578799382,2.91209288,3507.5,3506.7,2.85165]
[1721578799670,2.85111,3507.4,3506.8,2.85159]
[1721578799875,1.24136117,3507.5,3506.9,2.2624]
[1721578800111,0.06104466,3507.3,3506.9,2.2624]
[1721578800318,0.06104493,3507.4,3506.9,2.2624]
[1721578800611,3.0,3507.7,3507.0,2.85141]
[1721578800612,0.06106031,3507.3,3507.0,2.85141]
[1721578800816,2.85103,3507.5,3506.9,2.2624]
[1721578800983,0.0610634,3507.4,3506.9,2.2624]
[1721578801503,2.85134,3507.2,3506.5,2.85182]
[1721578802018,2.85136,3507.1,3506.5,2.85182]
[1721578802315,2.85136,3507.1,3506.4,2.8124]
[1721578802316,2.91243986,3507.1,3506.4,2.8124]
[1721578803716,2.85145,3507.0,3506.4,2.8124]
[1721578804220,0.06107912,3506.9,3506.4,5.66431]
[1721578804382,0.06107912,3506.9,3506.5,2.85183]
[1721578804724,2.85132,3507.2,3506.5,2.85183]
[1721578805214,2.91245779,3507.1,3506.4,2.8124]
[1721578805383,2.85144,3507.0,3506.4,2.8124]
[1721578805596,0.06104726,3506.9,3506.4,2.8124]
[1721578806213,2.8516,3506.8,3506.4,2.8124]
[1721578806623,0.06106082,3506.7,3506.4,2.8124]
[1721578806926,2.85168,3506.7,3506.1,2.2624]
[1721578807215,2.85168,3506.7,3506.2,0.55]
[1721578807578,0.06103799,3506.6,3506.2,0.55]